bitfinex/quotes_ETHUSD_20240823
["timestamp","ask_amount","ask_price","bid_price","bid_amount"]
[1724393474344,6.72391,2685.4,2684.8,18.24692222]
[1724393474546,6.72391,2685.4,2685.1,0.04721048]
[1724393474732,8.009064,2685.4,2684.8,18.24692222]
[1724393474934,4.285154,2685.4,2685.2,0.04717935]
[1724393475151,4.285154,2685.4,2684.8,18.24692222]
[1724393475351,4.285154,2685.4,2685.3,0.04714822]
[1724393475557,4.285154,2685.4,2684.8,18.24692222]
[1724393475760,1.0412824,2685.3,2684.8,18.24692222]
[1724393476178,4.7652624,2685.3,2684.8,18.24692222]
[1724393476351,6.72413,2685.2,2684.8,18.24692222]
[1724393478494,3.72446,2685.0,2684.5,18.24692222]
[1724393478702,2.3703,2684.9,2684.6,18.24692222]
[1724393479191,2.3703,2684.9,2684.2,18.24692222]
[1724393479192,9.09483,2684.9,2684.2,18.24692222]
[1724393480664,3.72468,2684.8,2684.2,18.24692222]
[1724393480995,9.09483,2684.9,2684.2,18.24692222]
[1724393481202,1.0139702,2684.8,2684.2,18.24692222]
[1724393481363,4.0139702,2684.8,2684.2,18.24692222]
[1724393481996,3.0,2684.8,2684.2,18.24692222]
[1724393482204,5.3703,2684.9,2684.2,18.24692222]
[1724393482876,9.09485,2684.9,2684.2,18.24692222]
[1724393483086,9.09485,2684.9,2684.3,0.04758991]
[1724393484593,3.72476,2684.8,2684.4,18.24692222]
[1724393484905,3.72481,2684.7,2684.5,0.04751603]
[1724393485316,4.00701536,2684.8,2684.5,0.04751603]
[1724393485529,1.3864192,2684.8,2684.5,0.04751603]
[1724393485708,3.0,2684.8,2684.5,0.04751603]
[1724393486108,2.3703,2684.9,2684.5,0.04751603]
[1724393489264,6.09483,2684.9,2684.5,0.04751603]
[1724393489395,6.72468,2684.8,2684.5,0.04751603]
[1724393489591,3.72468,2684.8,2684.5,0.04751603]
[1724393489797,4.334378,2684.7,2684.5,0.04751603]
[1724393490005,6.72494,2684.6,2684.5,0.04751603]
[1724393490232,12.80558,2684.6,2684.5,0.04751603]
[1724393490535,12.80558,2684.6,2684.5,18.29443825]
[1724393494211,5.3557,2684.6,2684.5,18.29443825]
[1724393494419,2.2542,2685.0,2684.5,18.29443825]
[1724393495122,3.72454,2684.9,2684.5,18.29443825]
[1724393495531,4.94010528,2684.9,2684.5,18.29443825]
[1724393496122,3.0,2684.8,2684.5,18.29443825]
[1724393496614,3.0,2684.8,2684.6,18.24692222]
[1724393496809,3.0,2684.8,2684.7,0.04615202]
[1724393497009,6.72467,2684.8,2684.7,0.04615202]
[1724393497237,8.37862714,2684.8,2684.7,0.04615202]
[1724393497441,4.65395714,2684.8,2684.7,0.04615202]
[1724393498255,3.0,2684.8,2684.7,0.04615202]
[1724393498977,3.72467,2684.8,2684.7,0.04615202]
[1724393499253,6.72467,2684.8,2684.7,0.04615202]
[1724393500649,3.0,2684.8,2684.7,0.04615202]
[1724393500837,6.72467,2684.8,2684.7,0.04615202]
[1724393501036,4.53241362,2684.8,2684.7,0.04615202]
[1724393502283,8.25708362,2684.8,2684.7,0.04615202]
[1724393502655,4.53241362,2684.8,2684.2,18.24692222]
[1724393502977,3.0,2684.7,2684.3,2.39578818]
[1724393503341,8.9786,2685.0,2684.3,2.39578818]
[1724393503543,3.7246,2684.9,2684.3,0.04628818]
[1724393503766,6.72467,2684.8,2684.3,0.04628818]
[1724393504136,3.72482,2684.7,2684.2,18.24692222]
[1724393504336,3.0,2684.6,2684.4,0.04627441]
[1724393504638,6.867562,2684.5,2683.7,18.24692222]
[1724393504836,3.72523,2684.4,2683.7,18.24692222]
[1724393505139,3.0,2684.3,2683.7,18.24692222]
[1724393505353,3.0,2684.4,2683.7,18.24692222]
[1724393505567,8.27931562,2684.4,2683.7,18.24692222]
[1724393505752,3.0,2684.4,2683.7,18.24692222]
[1724393506079,6.17688281,2685.1,2683.8,2.3796]
[1724393506080,3.0,2684.3,2683.8,2.3796]
[1724393506376,3.7251,2684.5,2683.8,2.3796]
[1724393506535,6.7253,2684.4,2683.7,18.24692222]
[1724393509011,3.72485,2684.7,2683.8,2.4813]
[1724393509303,3.72485,2684.7,2683.9,2.07282222]
[1724393510104,3.72495,2684.6,2683.9,2.07282222]
[1724393510501,3.0,2684.5,2683.9,2.07282222]
[1724393511892,3.0,2684.7,2683.9,5.79863222]
[1724393512083,3.0,2684.8,2683.9,5.79863222]
[1724393512296,3.72455,2684.9,2684.0,0.82799322]
[1724393512485,3.0,2684.8,2684.0,0.82799322]
[1724393513203,3.0,2684.8,2684.1,0.04482453]
[1724393513983,6.72469,2684.8,2684.1,0.04482453]
[1724393514508,3.72481,2684.7,2684.2,18.24692222]
[1724393514712,3.0,2684.6,2684.2,18.2917156]
[1724393514913,3.0,2684.6,2684.2,18.2417156]
[1724393515296,3.72529,2684.4,2684.2,18.2417156]
[1724393516082,9.20357,2684.6,2684.2,18.2417156]
[1724393516289,5.4785,2684.6,2684.2,18.2417156]
[1724393519205,6.5033262,2684.6,2684.2,18.2417156]
[1724393519560,10.2283762,2684.6,2684.2,18.2417156]
[1724393519851,3.7253,2684.4,2684.2,18.2417156]
[1724393520052,3.0,2684.3,2684.2,18.2417156]
[1724393520442,8.98046,2684.3,2684.2,0.04479338]
[1724393520663,9.65299,2684.3,2684.2,0.04479338]
[1724393520818,9.65299,2684.3,2683.6,18.19692222]
[1724393521025,9.65299,2684.3,2684.2,0.0449904]
[1724393521221,9.65299,2684.3,2683.6,18.19692222]
[1724393521432,1.337829,2684.2,2683.7,0.04514619]
[1724393523610,3.0,2684.3,2683.8,2.268]
[1724393523969,6.72538,2684.3,2683.9,0.04525775]
[1724393524159,3.72551,2684.2,2683.9,0.04525775]
[1724393524355,3.0,2684.1,2683.6,18.19692222]
[1724393524591,3.0,2684.1,2684.0,0.0452208]
[1724393525094,3.0,2684.1,2683.6,18.19692222]
[1724393525303,3.0,2684.1,2684.0,0.0452208]
[1724393525453,3.7770591,2684.1,2683.6,18.19692222]
[1724393525788,3.7770591,2684.1,2683.7,0.04531428]
[1724393526191,3.7770591,2684.1,2683.8,18.19692222]
[1724393526560,3.7770591,2684.1,2683.9,0.04525196]
[1724393528917,3.0,2684.1,2683.9,0.04525196]
[1724393529116,3.0,2684.3,2683.9,0.04525196]
[1724393529983,6.72537,2684.3,2683.9,0.04525196]
[1724393530562,3.0,2684.3,2683.9,0.04525196]
[1724393530962,3.59627448,2684.3,2683.9,0.04525196]
[1724393531755,7.32172448,2684.3,2683.9,0.04525196]
[1724393532196,7.32172448,2684.3,2684.0,18.19692222]
[1724393532503,7.32172448,2684.3,2684.1,0.04537511]
[1724393532799,3.59627448,2684.3,2684.1,0.04537511]
[1724393534076,7.32164448,2684.3,2684.1,0.04537511]
[1724393534395,4.83019045,2684.2,2684.1,0.04537511]
[1724393534607,7.83019045,2684.2,2684.1,0.04537511]
[1724393534894,8.41479509,2684.2,2684.1,0.04537511]
[1724393536089,10.76949509,2684.2,2684.1,0.04537511]
[1724393537001,10.76949509,2684.2,2684.0,18.19692222]
[1724393537201,3.0,2684.1,2684.0,18.19692222]
[1724393537786,1.68929509,2684.2,2684.0,18.19692222]
[1724393537991,0.58460464,2684.2,2684.1,18.19692222]
[1724393538496,1.67837373,2684.2,2684.1,18.19692222]
[1724393540388,2.3681,2684.1,2682.6,2.3489]
[1724393540628,1.09376909,2683.1,2682.6,2.3489]
[1724393540843,1.09376909,2682.9,2682.6,2.3489]
[1724393541148,1.09376909,2682.9,2682.4,0.1290263]
[1724393541624,1.09376909,2682.9,2682.4,3.8570063]
[1724393541824,3.0,2683.3,2682.4,4.95977784]
[1724393542122,1.09376909,2683.1,2682.4,4.95977784]
[1724393542484,3.0,2683.3,2682.4,4.95977784]
[1724393543124,3.0,2683.3,2682.5,0.04145978]
[1724393548149,3.0,2683.3,2682.5,3.76929978]
[1724393548451,3.0,2683.3,2682.5,4.76682639]
[1724393548947,3.0,2683.3,2682.5,1.03898639]
[1724393549249,2.71314737,2684.0,2682.6,2.272]
[1724393549481,0.58460464,2684.2,2683.4,2.272]
[1724393549748,6.0336,2684.5,2683.5,3.8420649]
[1724393550745,9.75877,2684.5,2683.5,3.8420649]
[1724393550913,7.75966094,2684.4,2683.5,0.04114798]
[1724393551554,3.72559,2684.2,2683.5,0.04114798]
[1724393551720,2.2624,2684.0,2683.5,0.04114798]
[1724393552173,2.2624,2684.0,2683.1,6.21066]
[1724393552406,3.161199,2684.0,2683.6,0.04155161]
[1724393552569,3.161199,2684.0,2683.1,6.21066]
[1724393552886,3.161199,2684.0,2683.7,0.04152045]
[1724393553055,0.6161199,2683.9,2683.2,3.72688]
[1724393553259,3.161199,2684.0,2683.2,3.72677]
[1724393553682,3.161199,2684.0,2683.3,0.04164512]
[1724393553990,2.62687004,2683.9,2682.8,6.02703]
[1724393554307,4.3048969,2683.8,2683.4,0.04161395]
[1724393554484,4.3048969,2683.8,2683.5,0.04158278]
[1724393554633,3.0,2683.7,2682.8,9.75433]
[1724393554835,3.0,2683.7,2682.9,3.76897286]
[1724393555139,3.7262,2683.7,2682.9,0.04168286]
[1724393555338,3.0,2683.6,2682.9,0.04168286]
[1724393555699,7.3048869,2683.8,2683.0,0.04165748]
[1724393555833,0.99317569,2683.7,2682.8,6.02704]
[1724393556181,0.99317569,2683.7,2682.9,0.04168866]
[1724393556588,4.71938569,2683.7,2682.9,0.04168866]
[1724393556886,5.4418,2683.6,2682.9,0.04168866]
[1724393557797,5.4418,2683.6,2682.7,3.72751]
[1724393558087,1.01611857,2683.5,2682.6,9.76263]
[1724393558266,1.01611857,2683.5,2682.7,0.04175103]
[1724393559247,2.2683,2683.4,2682.7,0.04175103]
[1724393559446,5.2683,2683.4,2682.4,3.8569663]
[1724393559650,1.00108986,2683.3,2682.4,3.8569663]
[1724393559848,4.00108986,2683.3,2682.5,0.04199895]
[1724393561172,4.00108986,2683.3,2682.5,3.76984895]
[1724393561540,3.0,2683.3,2682.7,3.72754]
[1724393561742,5.2683,2683.4,2682.7,3.72754]
[1724393561942,5.2683,2683.4,2682.8,19.46220115]
[1724393564339,3.0,2683.4,2682.8,19.46220115]
[1724393564641,3.7262,2683.7,2682.9,2.31896712]
[1724393564837,3.7262,2683.7,2682.8,19.46220115]
[1724393565165,2.2695,2683.4,2682.9,0.04225695]
[1724393565335,5.2695,2683.4,2682.9,0.04225695]
[1724393565539,0.899599,2683.3,2682.9,0.04225695]
[1724393565745,3.899599,2683.3,2682.9,0.04225695]
[1724393566377,7.626359,2683.3,2682.9,0.04225695]
[1724393566676,3.72693,2683.2,2682.9,0.04225695]
[1724393567263,7.626359,2683.3,2682.9,0.04225695]
[1724393567465,0.9895859,2683.2,2682.9,0.04225695]
[1724393567665,3.899599,2683.3,2682.9,0.04225695]
[1724393567978,3.0,2683.3,2683.0,19.42]
[1724393568187,2.2695,2683.4,2683.0,19.46235337]
[1724393569579,3.0,2683.6,2683.0,19.46235337]
[1724393569809,2.4634,2683.7,2683.0,19.46235337]
[1724393569958,3.645029,2683.7,2683.0,19.46235337]
[1724393570145,3.0,2683.6,2683.0,19.46235337]
[1724393570545,2.4634,2683.7,2683.0,19.46235337]
[1724393571959,6.18961,2683.7,2683.0,19.46235337]
[1724393572160,3.0,2683.6,2683.0,19.46235337]
[1724393572405,0.918961,2683.5,2683.0,19.46235337]
[1724393573939,0.918961,2683.5,2683.1,19.42]
[1724393574259,0.918961,2683.5,2683.1,19.46217719]
[1724393578403,3.0,2683.6,2683.1,19.46217719]
[1724393578555,3.0,2683.6,2683.1,23.18917719]
[1724393578774,3.0,2683.9,2683.1,23.18917719]
[1724393579701,3.0,2683.9,2683.2,19.42]
[1724393579898,4.53636028,2683.9,2683.2,19.42]
[1724393580105,4.53636028,2683.9,2683.3,0.04211484]
[1724393580879,8.26229028,2683.9,2683.3,0.04211484]
[1724393581315,11.98829028,2683.9,2683.3,0.04211484]
[1724393581478,8.26229028,2683.9,2683.3,0.04211484]
[1724393581812,3.72621,2683.7,2683.3,0.04211484]
[1724393582013,3.0,2683.6,2683.2,19.42]
[1724393582218,3.0,2683.6,2683.4,0.04208367]
[1724393582378,3.0,2683.6,2683.4,19.42]
[1724393582581,3.0,2683.6,2683.5,0.0420525]
[1724393583720,1.07218903,2683.8,2683.5,0.0420525]
[1724393583721,4.07218903,2683.8,2683.5,0.0420525]
[1724393584480,7.79829903,2683.8,2683.5,0.0420525]
[1724393585615,4.8786929,2683.7,2683.5,0.0420525]
[1724393585778,3.0,2683.6,2683.5,0.0420525]
[1724393585984,6.72633,2683.6,2683.1,19.42]
[1724393586259,6.72633,2683.6,2683.5,0.04037352]
[1724393586534,6.72633,2683.6,2683.1,19.42]
[1724393586700,6.72633,2683.6,2683.5,0.04037352]
[1724393587032,7.88683229,2683.6,2683.5,0.04037352]
[1724393587316,7.88683229,2683.6,2683.1,19.42]
[1724393587913,3.0,2683.6,2683.2,0.04046703]
[1724393588086,3.0,2683.7,2683.2,0.04046703]
[1724393591513,6.72624,2683.7,2683.2,0.04046703]
[1724393591823,6.72624,2683.7,2683.2,19.46046703]
[1724393592025,7.771477,2683.7,2683.2,19.46046703]
[1724393593625,2.3593,2683.6,2683.2,19.46046703]
[1724393596423,6.0857,2683.6,2683.2,19.46046703]
[1724393596790,10.45307,2683.5,2683.2,19.46046703]
[1724393597004,3.0,2683.4,2683.2,19.46046703]
[1724393597258,0.672651,2683.3,2683.2,19.46046703]
[1724393599432,3.72675,2683.3,2683.2,19.46046703]
[1724393599737,8.97835,2683.3,2683.2,19.46046703]
[1724393601539,12.7051,2683.3,2683.2,0.04046703]
[1724393601728,15.33197004,2683.3,2683.2,0.04046703]
[1724393602042,3.72691,2683.2,2682.5,19.42]
[1724393602243,3.72717,2683.0,2682.6,19.42]
[1724393602408,7.45445,2683.0,2682.5,19.42]
[1724393602744,7.45445,2683.0,2682.4,0.1290263]
[1724393602745,3.72786,2682.5,2682.4,0.1290263]
[1724393602940,9.85112,2682.5,2682.4,0.1290263]
[1724393603141,10.371059,2682.5,2682.4,0.1290263]
[1724393603344,3.0,2682.5,2682.4,0.1290263]
[1724393603541,3.0,2682.6,2682.4,0.1290263]
[1724393603715,3.0,2682.7,2682.4,0.1290263]
[1724393603940,6.72718,2683.0,2682.4,0.1290263]
[1724393604116,6.72718,2683.0,2682.5,0.03875287]
[1724393604803,3.0,2683.0,2682.5,0.03875287]
[1724393605147,3.0,2683.0,2682.6,19.42]
[1724393605321,3.0,2683.0,2682.6,21.63027332]
[1724393605521,3.0,2683.1,2682.7,0.0389685]
[1724393605720,3.0,2683.1,2682.8,19.42]
[1724393605922,3.0,2683.2,2682.8,19.42]
[1724393606116,6.72697,2683.2,2682.9,0.03890614]
[1724393607050,3.72705,2683.1,2682.9,0.03890614]
[1724393607212,3.0,2683.0,2682.9,0.03890614]
[1724393609252,6.72717,2683.0,2682.9,0.03890614]
[1724393609449,6.72717,2683.0,2682.9,19.45890614]
[1724393609963,3.0,2683.0,2682.9,19.45890614]
[1724393610251,14.25471758,2683.0,2682.9,19.45890614]
[1724393615433,14.25471758,2683.0,2682.9,0.03890614]
[1724393615634,3.72779,2682.6,2682.4,0.1290263]
[1724393615956,3.0,2682.5,2682.4,0.1290263]
[1724393616134,6.72786,2682.5,2682.4,0.1290263]
[1724393616740,8.98186,2682.5,2682.4,0.1290263]
[1724393617260,10.252818,2682.5,2682.4,0.1290263]
[1724393617473,13.980678,2682.5,2682.4,0.1290263]
[1724393618240,13.980678,2682.5,2682.4,0.16837216]
[1724393618439,13.980678,2682.5,2682.4,0.1290263]
[1724393621601,10.252818,2682.5,2682.4,0.1290263]
[1724393624549,11.34821304,2682.5,2682.4,0.1290263]
[1724393624776,15.07607304,2682.5,2682.4,0.1290263]
[1724393624959,11.34821304,2682.5,2682.4,0.1290263]
[1724393625560,3.0,2682.5,2682.4,0.1290263]
[1724393625860,3.0,2682.5,2682.4,0.16837216]
[1724393625861,1.09539504,2682.5,2682.4,0.16837216]
[1724393626250,1.09539504,2682.5,2682.4,0.1290263]
[1724393626846,1.09539504,2682.5,2682.4,0.16837216]
[1724393627085,3.86247758,2683.0,2682.4,0.16837216]
[1724393627086,0.58488558,2683.0,2682.4,2.53557216]
[1724393627389,1.09539504,2682.8,2682.5,19.42]
[1724393627607,1.09539504,2682.8,2682.6,0.03937618]
[1724393630179,4.09539504,2682.8,2682.6,0.03937618]
[1724393630612,3.0,2682.8,2682.6,0.03937618]
[1724393630815,6.72747,2682.8,2682.6,0.03937618]
[1724393631218,3.72758,2682.7,2682.6,0.03937618]
[1724393631391,10.45516,2682.7,2682.6,0.03937618]
[1724393632724,6.72758,2682.7,2682.6,0.03937618]
[1724393632892,3.0,2682.7,2682.6,0.03937618]
[1724393633095,3.0,2682.8,2682.6,0.03937618]
[1724393633413,8.79648796,2683.2,2682.6,19.45937618]
[1724393633636,3.8796488,2683.1,2682.7,19.42]
[1724393633818,3.8796488,2683.1,2682.7,19.45934499]
[1724393634202,3.72725,2683.0,2682.7,19.45934499]
[1724393634402,3.0,2682.9,2682.7,19.45934499]
[1724393635643,6.72731,2682.9,2682.7,19.45934499]
[1724393636336,3.72744,2682.8,2682.7,19.45934499]
[1724393636652,6.72744,2682.8,2682.7,19.45934499]
[1724393638386,3.0,2682.8,2682.7,19.45934499]
[1724393639147,3.0,2682.8,2682.7,0.03934499]
[1724393639596,3.0,2682.8,2682.5,19.42]
[1724393639758,3.0,2682.8,2682.7,0.03925229]
[1724393640259,3.0,2682.8,2682.5,19.42]
[1724393640462,3.0,2682.7,2682.5,19.42]
[1724393641097,3.0,2682.8,2682.5,19.42]
[1724393641861,6.72745,2682.8,2682.5,19.418478]
[1724393642496,3.0,2682.8,2682.5,19.418478]
[1724393642704,6.72746,2682.8,2682.5,19.418478]
[1724393643001,5.00138737,2682.7,2682.5,19.418478]
[1724393643299,3.72772,2682.6,2682.5,19.418478]
[1724393643465,3.72772,2682.6,2682.4,0.1290263]
[1724393644028,1.27370737,2682.7,2682.4,0.1290263]
[1724393644177,5.00132737,2682.7,2682.4,0.1290263]
[1724393644376,9.06106,2682.8,2682.4,0.1290263]
[1724393644567,6.72746,2682.8,2682.4,0.1290263]
[1724393646615,3.0,2682.8,2682.4,0.1290263]
[1724393647091,3.0,2682.8,2682.4,2.5963263]
[1724393647490,3.0,2682.9,2682.4,2.5963263]
[1724393648213,3.0,2682.9,2682.5,19.4578506]
[1724393650532,1.09494287,2682.6,2682.5,19.4578506]
[1724393650846,3.0,2682.9,2682.5,2.24479029]
[1724393651147,0.58490651,2683.4,2683.2,3.72687]
[1724393651275,0.58490651,2683.4,2683.3,21.7831]
[1724393651479,0.58490651,2683.4,2683.3,21.82213625]
[1724393653959,0.58490651,2683.4,2683.3,25.54888625]
[1724393654121,0.58490651,2683.4,2683.3,28.58595916]
[1724393654734,3.72538,2684.3,2683.3,28.58595916]
[1724393654959,3.72538,2684.3,2683.4,19.42]
[1724393655259,3.72538,2684.3,2683.6,2.2998]
[1724393655617,3.0,2684.2,2683.7,0.03844831]
[1724393657739,7.35444893,2684.2,2683.7,0.03844831]
[1724393658248,3.72576,2684.1,2683.7,0.03844831]
[1724393658443,3.72576,2684.1,2683.4,19.42]
[1724393658444,5.326,2684.0,2683.4,19.42]
[1724393658748,5.326,2684.0,2683.8,0.03841715]
[1724393659047,6.59406689,2684.0,2683.9,0.03838599]
[1724393659243,5.326,2684.0,2683.5,19.42]
[1724393659411,3.0,2684.0,2683.5,19.42]
[1724393659823,3.0,2684.0,2683.6,0.03847947]
[1724393660416,3.0,2684.0,2683.6,1.98432742]
[1724393660612,3.0,2684.2,2683.6,1.98432742]
[1724393660966,3.0,2684.2,2683.7,2.4454]
[1724393661303,3.0,2684.2,2683.8,0.03841715]
[1724393661521,3.0,2684.2,2683.7,2.4454]
[1724393661781,3.0,2684.2,2683.9,0.03838599]
[1724393661918,3.0,2684.2,2683.8,0.03841715]
[1724393662114,3.0,2684.2,2683.7,2.4454]
[1724393662350,3.0,2684.2,2683.9,0.03838599]
[1724393662552,3.0,2684.2,2683.8,0.03841715]
[1724393662756,3.0,2684.2,2684.0,0.03835483]
[1724393662957,3.0,2684.4,2684.0,19.42]
[1724393663254,3.0,2684.4,2684.1,0.03768674]
[1724393664264,2.2567,2684.5,2684.1,0.03768674]
[1724393665515,5.98182,2684.5,2684.1,0.03768674]
[1724393665718,3.0,2684.4,2684.1,0.03768674]
[1724393666361,3.0,2684.4,2684.1,19.45768674]
[1724393666864,5.2567,2684.5,2684.1,19.45768674]
[1724393668352,8.98179,2684.5,2684.1,19.45768674]
[1724393668660,9.91249803,2684.5,2684.1,19.45768674]
[1724393671037,3.72523,2684.4,2684.1,19.45768674]
[1724393671237,3.0,2684.3,2684.1,19.45768674]
[1724393672065,3.0,2684.3,2684.2,19.42]
[1724393672221,3.0,2684.3,2684.2,19.4574067]
[1724393673149,3.0,2684.4,2684.2,19.4574067]
[1724393673763,6.72524,2684.4,2684.2,19.4574067]
[1724393673950,3.0,2684.4,2684.2,19.4574067]
[1724393674871,6.72525,2684.4,2684.2,19.4574067]
[1724393675027,1.01557315,2684.3,2684.2,19.4574067]
[1724393676470,2.10933861,2684.3,2684.2,19.4574067]
[1724393677157,1.09376546,2684.3,2684.2,19.4574067]
[1724393677881,1.09376546,2684.3,2684.2,0.0374067]
[1724393678194,2.2626,2684.1,2683.7,19.42]
[1724393678342,1.09376546,2683.8,2683.7,19.42]
[1724393683486,1.09376546,2683.8,2683.7,22.098]
[1724393684457,1.09376546,2683.8,2683.7,19.42]
[1724393686457,1.09376546,2684.0,2683.7,19.42]
[1724393689880,1.09376546,2684.0,2683.8,19.42]
[1724393691558,2.4544,2684.6,2683.9,19.42]
[1724393691757,1.09376546,2684.5,2684.0,21.362]
[1724393692685,6.17935,2684.6,2684.0,21.362]
[1724393692993,1.09376546,2684.4,2684.0,21.362]
[1724393693210,1.09376546,2684.4,2684.1,2.17321263]
[1724393695372,1.09376546,2684.2,2684.1,0.03701263]
[1724393695703,1.09376546,2684.2,2684.1,19.45701263]
[1724393701099,1.09376546,2684.4,2684.1,19.45701263]
[1724393701298,1.09376546,2684.6,2684.1,19.45701263]
[1724393701478,4.09376546,2684.6,2684.1,19.45701263]
[1724393701679,4.09376546,2684.6,2684.2,19.42]
[1724393701881,1.09376546,2684.4,2684.2,19.45668635]
[1724393703803,1.09376546,2684.4,2684.2,21.65137498]
[1724393704102,1.09376546,2684.6,2684.2,21.65137498]
[1724393704303,3.0,2684.7,2684.2,2.23137498]
[1724393704604,1.09376546,2684.8,2684.2,0.03668635]
[1724393704990,1.09376546,2684.8,2684.0,6.21586]
[1724393705605,1.09376546,2684.8,2684.2,3.72546]
[1724393705902,1.09376546,2684.8,2684.3,0.11115016]
[1724393706142,1.09376546,2684.8,2684.4,2.4419]
[1724393706270,1.09376546,2684.8,2684.5,0.07449405]
[1724393706466,1.09376546,2684.8,2684.5,0.03659291]
[1724393706976,1.09376546,2684.8,2684.5,0.11108737]
[1724393709967,1.09376546,2684.6,2684.5,0.03659291]
[1724393710250,5.54255301,2684.6,2684.5,0.03659291]
[1724393710405,5.54255301,2684.6,2683.7,2.4238]
[1724393710406,6.14499,2684.5,2683.7,2.4238]
[1724393710567,1.09376546,2684.1,2683.7,2.4238]
[1724393710771,1.09376546,2684.1,2683.8,0.03630189]
[1724393711003,3.0,2684.6,2684.0,2.4238]
[1724393711207,6.14451,2684.9,2684.1,0.35175655]
[1724393711208,1.09376546,2684.8,2684.1,0.35175655]
[1724393711381,1.09376546,2684.8,2684.1,0.38801702]
[1724393712112,5.4199,2684.9,2684.2,3.72548]
[1724393712265,1.09376546,2684.9,2684.3,2.3556]
[1724393712469,1.09376546,2684.9,2684.4,20.14238482]
[1724393713108,1.09376546,2684.9,2684.5,0.07449172]
[1724393713439,1.09376546,2684.9,2684.5,0.11062759]
[1724393714492,1.09376546,2684.9,2684.5,0.03613587]
[1724393715120,1.09376546,2684.7,2684.5,0.03613587]
[1724393715632,4.81857546,2684.7,2684.5,0.03613587]
[1724393715931,13.45588,2684.6,2684.5,0.03613587]
[1724393716102,2.456,2684.1,2684.0,19.42]
[1724393716315,10.27540546,2684.1,2683.8,19.42]
[1724393716635,1.09376546,2683.8,2683.5,19.42]
[1724393716819,1.09376546,2683.8,2683.5,22.32793]
[1724393717299,9.18164,2684.1,2683.5,22.32793]
[1724393717300,1.09376546,2683.6,2683.5,22.32793]
[1724393718394,3.0,2683.9,2683.5,22.32793]
[1724393718693,3.0,2683.9,2683.5,19.42]
[1724393719634,3.0,2683.9,2683.4,7.36]
[1724393719635,3.0,2683.9,2683.6,19.42]
[1724393719857,2.4535,2683.8,2683.6,19.42]
[1724393720563,3.0,2684.0,2683.6,19.42]
[1724393720713,3.0,2684.0,2683.6,22.098]
[1724393720908,5.4535,2684.1,2683.6,22.098]
[1724393721493,9.17916,2684.1,2683.6,22.098]
[1724393723126,9.17916,2684.1,2683.7,0.03446182]
[1724393723734,5.4535,2684.1,2683.7,2.05932788]
[1724393723894,2.4535,2684.1,2683.7,2.05932788]
[1724393725421,2.4535,2684.1,2683.8,19.42]
[1724393725799,2.4535,2684.1,2683.9,0.03684421]
[1724393726552,5.4535,2684.1,2683.9,0.03684421]
[1724393727029,3.0,2684.0,2683.9,0.03684421]
[1724393727229,2.4535,2684.1,2683.9,0.03684421]
[1724393729144,3.0,2684.2,2683.9,0.03684421]
[1724393730117,3.0,2684.2,2683.9,1.98252863]
[1724393731446,3.0,2684.2,2683.9,19.45684421]
[1724393731641,6.72552,2684.2,2683.9,19.45684421]
[1724393732020,3.0,2684.2,2683.9,19.45684421]
[1724393733548,6.72554,2684.2,2683.9,19.45684421]
[1724393735005,3.0,2684.2,2683.9,19.45684421]
[1724393735236,3.0,2684.3,2684.0,1.94568442]
[1724393735431,2.3545,2684.6,2684.0,1.94568442]
[1724393735645,6.07952,2684.6,2684.1,0.03477078]
[1724393736007,3.7251,2684.5,2684.1,0.03477078]
[1724393736626,7.45029,2684.5,2683.9,19.42]
[1724393736854,7.45029,2684.5,2684.2,0.03473963]
[1724393737039,3.7251,2684.5,2683.9,19.42]
[1724393737349,3.7251,2684.5,2684.0,19.42]
[1724393737553,3.7251,2684.5,2684.0,19.45480194]
[1724393737951,3.72531,2684.4,2684.0,19.45480194]
[1724393738515,1.09363075,2684.3,2684.0,19.45480194]
[1724393740857,7.08207075,2684.1,2684.0,19.45480194]
[1724393741155,10.08207075,2684.1,2684.0,19.47003151]
[1724393741536,13.80771075,2684.1,2684.0,19.47003151]
[1724393742231,10.08207075,2684.1,2684.0,19.47003151]
[1724393743081,10.41738148,2684.1,2684.0,19.47003151]
[1724393743298,11.51101223,2684.1,2684.0,0.05003151]
[1724393743582,4.09363075,2684.1,2683.5,2.2819]
[1724393743796,3.0,2684.0,2683.5,2.2819]
[1724393743936,3.0,2684.0,2683.6,0.12489375]
[1724393744152,4.09363075,2684.3,2683.7,3.72619]
[1724393744397,1.09363075,2684.3,2683.9,2.2963]
[1724393744684,2.2583,2684.6,2683.9,2.2963]
[1724393744976,2.2583,2684.6,2684.0,0.12467159]
[1724393745548,2.2583,2684.6,2684.0,0.05016623]
[1724393746483,8.98328,2684.6,2684.0,0.32332369]
[1724393748189,8.98328,2684.6,2684.0,0.39782957]
[1724393748391,3.0,2684.6,2684.1,19.42]
[1724393748628,5.4663,2684.9,2684.3,2.3586]
[1724393748832,5.4663,2684.9,2684.4,19.42]
[1724393748992,5.4663,2684.9,2684.4,19.46971064]
[1724393749614,6.72474,2684.8,2684.4,19.46971064]
[1724393749826,3.72495,2684.6,2684.4,19.46971064]
[1724393750828,13.841735,2684.5,2684.4,0.04971064]
[1724393751034,3.72573,2684.1,2683.6,19.42]
[1724393751325,3.72589,2684.0,2683.7,19.42]
[1724393751732,6.01973,2684.1,2683.7,19.42]
[1724393751900,3.0,2684.0,2683.7,19.42]
[1724393754547,6.72581,2684.0,2683.7,19.42]
[1724393755204,6.72581,2684.0,2683.4,19.42]
[1724393755425,6.72581,2684.0,2683.4,22.098]
[1724393758044,0.58471203,2683.9,2683.4,22.098]
[1724393758264,5.99073,2683.8,2683.4,19.42]
[1724393759220,2.2646,2683.8,2683.4,19.42]
[1724393759422,0.58471203,2683.9,2683.4,19.42]
[1724393759723,0.58471203,2683.9,2683.5,2.1673]
[1724393764218,0.58471203,2683.9,2683.6,19.42]
[1724393768182,2.4014,2683.8,2683.6,19.42]
[1724393769284,6.12746,2683.8,2683.6,19.42]